fUST/lending_fUST_20250906
["ID","MTS","AMOUNT","RATE_DAILY","PERIOD"]
[383804023,1757123443111,-480.0,0.00013698,2]
[383804025,1757123443123,-575.52,0.00013698,2]
[383804027,1757123443132,-480.0,0.00013698,2]
[383804029,1757123443142,-482.13815804,0.00013698,2]
[383804042,1757123443261,-480.86368642,0.00013698,2]
[383804044,1757123443275,-480.0,0.00013698,2]
[383804046,1757123443286,-480.0,0.00013698,2]
[383804048,1757123443296,-480.0,0.00013698,2]
[383804050,1757123443306,-163.401275,0.00013698,2]
[383804052,1757123443316,-480.0,0.00013698,2]
[383804055,1757123443326,-480.0,0.00013698,2]
[383804057,1757123443336,-480.0,0.00013698,2]
[383804060,1757123443345,-480.0,0.00013698,2]
[383804063,1757123443359,-482.28794651,0.00013698,2]
[383804066,1757123443372,-480.0,0.00013698,2]
[383804069,1757123443382,-480.0,0.00013698,2]
[383804072,1757123443392,-480.0,0.00013698,2]
[383804074,1757123443401,-480.0,0.00013698,2]
[383804076,1757123443411,-480.0,0.00013698,2]
[383804078,1757123443420,-481.41334001,0.00013698,2]
[383804080,1757123443430,-480.0,0.00013698,2]
[383804082,1757123443439,-480.0,0.00013698,2]
[383804084,1757123443449,-484.19773027,0.00013698,2]
[383804086,1757123443458,-480.0,0.00013698,2]
[383804088,1757123443467,-153.14225,0.00013698,2]
[383804090,1757123443477,-480.0,0.00013698,2]
[383804092,1757123443486,-361.63365769,0.00013698,2]
[383804094,1757123443495,-480.0,0.00013698,2]
[383804096,1757123443505,-805.13,0.00013698,2]
[383804098,1757123443514,-481.98650963,0.00013698,2]
[383804100,1757123443524,-480.0,0.00013698,2]
[383804102,1757123443533,-480.0,0.00013698,2]
[383804104,1757123443543,-483.41344982,0.00013698,2]
[383804106,1757123443552,-480.0,0.00013698,2]
[383804108,1757123443562,-480.0,0.00013698,2]
[383804110,1757123443571,-480.0,0.00013698,2]
[383804112,1757123443580,-480.0,0.00013698,2]
[383804114,1757123443590,-254.952377,0.00013698,2]
[383804116,1757123443600,-480.0,0.00013698,2]
[383804118,1757123443610,-154.61208441,0.00013698,2]
[383804120,1757123443619,-254.952377,0.00013698,2]
[383804122,1757123443629,-484.04635469,0.00013698,2]
[383804124,1757123443639,-151.0,0.00013698,2]
[383804126,1757123443648,-480.0,0.00013698,2]
[383804128,1757123443657,-462.10531999,0.00013698,2]
[383804130,1757123443667,-254.952377,0.00013698,2]
[383804132,1757123443676,-671.43,0.00013698,2]
[383804134,1757123443686,-254.952377,0.00013698,2]
[383804136,1757123443695,-151.0,0.00013698,2]
[383804138,1757123443704,-500.0,0.00013698,2]
[383804140,1757123443714,-652.96831,0.00013699,2]
[383804142,1757123443723,-672.200099,0.00013699,2]
[383804144,1757123443733,-219.210025,0.00013699,2]
[383804146,1757123443743,-4086.7268533,0.00013699,2]
[383804148,1757123443753,-151.0,0.00013699,2]
[383804150,1757123443762,-151.0,0.00013699,2]
[383804152,1757123443772,-168.0,0.00013741,2]
[383804154,1757123443782,-737.6599874,0.00013745,2]
[383804156,1757123443791,-151.0,0.000138,2]
[383804158,1757123443800,-737.6599874,0.00013823,2]
[383804160,1757123443810,-168.0,0.00013862,2]
[383804162,1757123443819,-300.0,0.00013869,2]
[383804164,1757123443829,-300.0,0.00013869,2]
[383804167,1757123443839,-300.0,0.00013869,2]
[383804169,1757123443848,-300.0,0.00013869,2]
[383804171,1757123443858,-300.0,0.00013869,2]
[383804173,1757123443867,-300.0,0.00013869,2]
[383804175,1757123443877,-300.0,0.00013869,2]
[383804177,1757123443886,-300.0,0.00013869,2]
[383804179,1757123443896,-300.0,0.00013869,2]
[383804181,1757123443906,-300.0,0.00013869,2]
[383804183,1757123443915,-300.0,0.00013869,2]
[383804185,1757123443925,-300.0,0.00013869,2]
[383804187,1757123443935,-300.0,0.00013869,2]
[383804189,1757123443944,-300.0,0.00013869,2]
[383804191,1757123443953,-300.0,0.00013869,2]
[383804193,1757123443962,-151.0,0.00013872,2]
[383804195,1757123443972,-151.0,0.00013872,2]
[383804197,1757123443981,-174.371751,0.00013872,2]
[383804199,1757123443990,-174.371751,0.00013872,2]
[383804201,1757123444000,-174.371751,0.00013872,2]
[383804203,1757123444009,-151.0,0.00013872,2]
[383804205,1757123444019,-174.371751,0.00013872,2]
[383804207,1757123444028,-151.0,0.00013872,2]
[383804209,1757123444038,-151.870715,0.00013872,2]
[383804211,1757123444048,-241.0,0.00013872,2]
[383804213,1757123444057,-151.0,0.00013872,2]
[383804215,1757123444066,-151.0,0.00013872,2]
[383804217,1757123444079,-151.0,0.00013872,2]
[383804219,1757123444089,-242.327953,0.00013888,2]
[383804221,1757123444098,-153.880679,0.00013888,2]
[383804223,1757123444108,-5771.02401996,0.00013888,2]
[383804225,1757123444117,-151.0,0.000139,2]
[383804227,1757123444127,-737.6599874,0.000139,2]
[383804229,1757123444137,-168.0,0.00013919,2]
[383804231,1757123444146,-168.0,0.00013929,2]
[383804233,1757123444155,-160.0,0.00013948,2]
[383804235,1757123444165,-160.0,0.00013948,2]
[383804237,1757123444174,-160.0,0.00013948,2]
[383804239,1757123444185,-160.0,0.00013948,2]
[383804241,1757123444196,-160.0,0.00013948,2]
[383804243,1757123444206,-203.18701864,0.00013948,2]
[383804245,1757123444215,-160.0,0.00013948,2]
[383804247,1757123444224,-168.0,0.00013951,2]
[383804249,1757123444234,-168.0,0.00013955,2]
[383804251,1757123444243,-1790.5223145,0.00013961,2]
[383804253,1757123444253,-168.0,0.0001397,2]
[383804255,1757123444262,-600.0,0.00013971,2]
[383804257,1757123444271,-157.0,0.00013972,2]
[383804259,1757123444281,-500.0,0.00013972,2]
[383804261,1757123444291,-167.88869049,0.00013972,2]
[383804263,1757123444301,-291.79,0.00013972,2]
[383804265,1757123444311,-480.0,0.00013972,2]
[383804267,1757123444319,-480.0,0.00013972,2]
[383804269,1757123444329,-480.0,0.00013972,2]
[383804271,1757123444338,-480.60601053,0.00013972,2]
[383804273,1757123444347,-480.0,0.00013972,2]
[383804275,1757123444356,-481.04892226,0.00013972,2]
[383804277,1757123444366,-412.62835186,0.00013972,2]
[383804279,1757123444376,-480.0,0.00013972,2]
[383804281,1757123444385,-480.0,0.00013972,2]
[383804284,1757123444395,-151.913193,0.00013972,2]
[383804286,1757123444404,-480.0,0.00013972,2]
[383804288,1757123444414,-355.35455711,0.00013972,2]
[383804290,1757123444423,-515.40489491,0.00013972,2]
[383804292,1757123444432,-480.0,0.00013972,2]
[383804294,1757123444441,-480.0,0.00013972,2]
[383804296,1757123444451,-154.025601,0.00013972,2]
[383804298,1757123444460,-480.0,0.00013972,2]
[383804300,1757123444469,-151.0,0.00013972,2]
[383804302,1757123444478,-467.38732919,0.00013972,2]
[383804304,1757123444487,-480.0,0.00013972,2]
[383804306,1757123444496,-480.0,0.00013972,2]
[383804308,1757123444506,-151.60632,0.00013972,2]
[383804310,1757123444516,-151.481648,0.00013972,2]
[383804312,1757123444525,-480.0,0.00013972,2]
[383804314,1757123444534,-480.0,0.00013972,2]
[383804316,1757123444543,-199.24139442,0.00013972,2]
[383804318,1757123444552,-480.0,0.00013972,2]
[383804320,1757123444561,-480.0,0.00013972,2]
[383804322,1757123444571,-482.62800926,0.00013972,2]
[383804324,1757123444580,-529.86110899,0.00013972,2]
[383804326,1757123444589,-480.0,0.00013972,2]
[383804328,1757123444598,-498.31765793,0.00013972,2]
[383804330,1757123444608,-480.0,0.00013972,2]
[383804332,1757123444617,-480.0,0.00013972,2]
[383804334,1757123444626,-483.45936438,0.00013972,2]
[383804336,1757123444635,-480.0,0.00013972,2]
[383804338,1757123444644,-155.019658,0.00013972,2]
[383804340,1757123444653,-480.0,0.00013972,2]
[383804342,1757123444662,-480.0,0.00013972,2]
[383804344,1757123444672,-480.0,0.00013972,2]
[383804346,1757123444681,-480.0,0.00013972,2]
[383804348,1757123444690,-481.66279927,0.00013972,2]
[383804350,1757123444699,-480.0,0.00013972,2]
[383804352,1757123444709,-480.0,0.00013972,2]
[383804354,1757123444718,-482.56564295,0.00013972,2]
[383804356,1757123444728,-482.13883163,0.00013972,2]
[383804358,1757123444738,-480.0,0.00013972,2]
[383804359,1757123444746,-484.62897342,0.00013972,2]
[383804360,1757123444755,-480.0,0.00013972,2]
[383804361,1757123444764,-480.0,0.00013972,2]
[383804362,1757123444773,-480.0,0.00013972,2]
[383804363,1757123444782,-480.0,0.00013972,2]
[383804364,1757123444791,-482.39800868,0.00013972,2]
[383804365,1757123444800,-507.6779744,0.00013972,2]
[383804366,1757123444809,-480.0,0.00013972,2]
[383804367,1757123444818,-480.0,0.00013972,2]
[383804368,1757123444827,-480.0,0.00013972,2]
[383804369,1757123444836,-482.10516984,0.00013972,2]
[383804370,1757123444845,-480.0,0.00013972,2]
[383804371,1757123444854,-480.0,0.00013972,2]
[383804373,1757123444864,-480.0,0.00013972,2]
[383804375,1757123444874,-480.0,0.00013972,2]
[383804377,1757123444883,-464.46519318,0.00013972,2]
[383804379,1757123444892,-480.0,0.00013972,2]
[383804381,1757123444902,-412.78007096,0.00013972,2]
[383804383,1757123444911,-151.0,0.00013972,2]
[383804385,1757123444920,-480.0,0.00013972,2]
[383804387,1757123444929,-174.371751,0.00013972,2]
[383804389,1757123444938,-179.44399918,0.00013972,2]
[383804391,1757123444948,-174.371751,0.00013972,2]
[383804393,1757123444957,-174.371751,0.00013972,2]
[383804395,1757123444966,-151.0,0.00013972,2]
[383804397,1757123444976,-480.0,0.00013972,2]
[383804399,1757123444985,-174.371751,0.00013972,2]
[383804401,1757123444995,-151.63298,0.00013972,2]
[383804403,1757123445004,-480.0,0.00013972,2]
[383804405,1757123445013,-480.0,0.00013972,2]
[383804407,1757123445023,-480.0,0.00013972,2]
[383804409,1757123445032,-480.0,0.00013972,2]
[383804411,1757123445041,-481.8333983,0.00013972,2]
[383804413,1757123445051,-480.0,0.00013972,2]
[383804415,1757123445060,-480.0,0.00013972,2]
[383804417,1757123445070,-480.0,0.00013972,2]
[383804419,1757123445084,-151.0,0.00013972,2]
[383804421,1757123445093,-480.0,0.00013972,2]
[383804423,1757123445103,-151.0,0.00013972,2]
[383804425,1757123445112,-252.020525,0.00013972,2]
[383804427,1757123445124,-480.0,0.00013972,2]
[383804429,1757123445134,-480.0,0.00013972,2]
[383804432,1757123445145,-480.0,0.00013972,2]
[383804433,1757123445156,-480.0,0.00013972,2]
[383804436,1757123445166,-482.21196811,0.00013972,2]
[383804438,1757123445176,-480.0,0.00013972,2]
[383804440,1757123445187,-480.0,0.00013972,2]
[383804442,1757123445196,-480.0,0.00013972,2]
[383804443,1757123445205,-483.69683165,0.00013972,2]
[383804445,1757123445215,-151.0,0.00013972,2]
[383804447,1757123445225,-151.0,0.00013972,2]
[383804449,1757123445235,-482.69025031,0.00013972,2]
[383804451,1757123445244,-480.0,0.00013972,2]
[383804453,1757123445254,-498.37878167,0.00013972,2]
[383804455,1757123445263,-480.0,0.00013972,2]
[383804458,1757123445275,-166.6072476,0.00013972,2]
[383804460,1757123445284,-480.0,0.00013972,2]
[383804462,1757123445294,-480.0,0.00013972,2]
[383804464,1757123445303,-153.876622,0.00013972,2]
[383804466,1757123445313,-480.0,0.00013972,2]
[383804468,1757123445323,-484.59056608,0.00013972,2]
[383804470,1757123445332,-524.68776467,0.00013972,2]
[383804472,1757123445342,-480.0,0.00013972,2]
[383804474,1757123445352,-480.0,0.00013972,2]
[383804476,1757123445361,-508.31326227,0.00013972,2]
[383804478,1757123445371,-483.62581635,0.00013972,2]
[383804480,1757123445381,-480.0,0.00013972,2]
[383804482,1757123445391,-480.0,0.00013972,2]
[383804484,1757123445399,-480.0,0.00013972,2]
[383804486,1757123445409,-480.0,0.00013972,2]
[383804488,1757123445418,-480.0,0.00013972,2]
[383804490,1757123445428,-480.0,0.00013972,2]
[383804492,1757123445437,-480.0,0.00013972,2]
[383804494,1757123445447,-484.70768145,0.00013972,2]
[383804496,1757123445456,-428.31382866,0.00013972,2]
[383804498,1757123445466,-480.0,0.00013972,2]
[383804500,1757123445475,-480.0,0.00013972,2]
[383804502,1757123445485,-151.0,0.00013972,2]
[383804504,1757123445494,-151.0,0.00013972,2]
[383804506,1757123445503,-480.0,0.00013972,2]
[383804508,1757123445513,-480.0,0.00013972,2]
[383804510,1757123445522,-201.93091251,0.00013972,2]
[383804512,1757123445531,-482.03835101,0.00013972,2]
[383804514,1757123445540,-481.92195747,0.00013972,2]
[383804516,1757123445550,-480.0,0.00013972,2]
[383804518,1757123445559,-480.0,0.00013972,2]
[383804520,1757123445568,-481.45054273,0.00013972,2]
[383804522,1757123445578,-480.0,0.00013972,2]
[383804524,1757123445586,-480.0,0.00013972,2]
[383804526,1757123445596,-517.6330095,0.00013972,2]
[383804531,1757123445637,-481.86954609,0.00013972,2]
[383804533,1757123445647,-480.0,0.00013972,2]
[383804535,1757123445656,-480.0,0.00013972,2]
[383804537,1757123445666,-480.0,0.00013972,2]
[383804539,1757123445675,-487.60649724,0.00013972,2]
[383804541,1757123445684,-480.0,0.00013972,2]
[383804543,1757123445693,-480.0,0.00013972,2]
[383804545,1757123445703,-480.0,0.00013972,2]
[383804547,1757123445713,-484.83622505,0.00013972,2]
[383804549,1757123445722,-484.22909381,0.00013972,2]
[383804551,1757123445731,-480.0,0.00013972,2]
[383804553,1757123445739,-480.0,0.00013972,2]
[383804555,1757123445748,-480.0,0.00013972,2]
[383804557,1757123445757,-480.0,0.00013972,2]
[383804559,1757123445766,-480.0,0.00013972,2]
[383804561,1757123445775,-308.71523952,0.00013972,2]
[383804563,1757123445784,-480.0,0.00013972,2]
[383804565,1757123445793,-480.0,0.00013972,2]
[383804567,1757123445803,-480.0,0.00013972,2]
[383804569,1757123445813,-481.15374603,0.00013972,2]
[383804571,1757123445822,-480.0,0.00013972,2]
[383804573,1757123445831,-609.01300727,0.00013972,2]
[383804575,1757123445840,-301.64501856,0.00013972,2]
[383804577,1757123445849,-480.0,0.00013972,2]
[383804579,1757123445857,-486.72747033,0.00013972,2]
[383804581,1757123445867,-480.0,0.00013972,2]
[383804583,1757123445876,-480.0,0.00013972,2]
[383804585,1757123445887,-480.0,0.00013972,2]
[383804587,1757123445896,-480.0,0.00013972,2]
[383804589,1757123445906,-480.0,0.00013972,2]
[383804591,1757123445915,-481.40088777,0.00013972,2]
[383804593,1757123445925,-695.29,0.00013972,2]
[383804595,1757123445935,-503.76295068,0.00013972,2]
[383804597,1757123445944,-195.8400977,0.00013972,2]
[383804599,1757123445954,-480.0,0.00013972,2]
[383804601,1757123445964,-4241.64,0.00013972,2]
[383804603,1757123445973,-480.0,0.00013972,2]
[383804605,1757123445982,-480.49,0.00013972,2]
[383804607,1757123445991,-480.0,0.00013972,2]
[383804609,1757123446000,-480.0,0.00013972,2]
[383804611,1757123446010,-480.0,0.00013972,2]
[383804613,1757123446019,-480.0,0.00013972,2]
[383804615,1757123446028,-480.0,0.00013972,2]
[383804617,1757123446037,-480.0,0.00013972,2]
[383804619,1757123446047,-480.0,0.00013972,2]
[383804621,1757123446056,-519.59,0.00013972,2]
[383804624,1757123446066,-286.00042216,0.00013972,2]
[383804626,1757123446080,-480.0,0.00013972,2]
[383804628,1757123446089,-486.13047586,0.00013972,2]
[383804630,1757123446099,-480.0,0.00013972,2]
[383804632,1757123446108,-480.0,0.00013972,2]
[383804634,1757123446118,-480.0,0.00013972,2]
[383804636,1757123446128,-480.0,0.00013972,2]
[383804638,1757123446137,-480.0,0.00013972,2]
[383804640,1757123446147,-480.0,0.00013972,2]
[383804642,1757123446156,-480.0,0.00013972,2]
[383804644,1757123446166,-480.0,0.00013972,2]
[383804646,1757123446175,-151.0,0.00013972,2]
[383804648,1757123446185,-151.0,0.00013972,2]
[383804650,1757123446196,-486.56575335,0.00013972,2]
[383804652,1757123446206,-480.0,0.00013972,2]
[383804654,1757123446215,-480.0,0.00013972,2]
[383804656,1757123446225,-1295.84,0.00013972,2]
[383804658,1757123446234,-480.0,0.00013972,2]
[383804660,1757123446244,-481.64997961,0.00013972,2]
[383804662,1757123446253,-480.0,0.00013972,2]
[383804664,1757123446262,-1365.22,0.00013972,2]
[383804666,1757123446271,-481.39080992,0.00013972,2]
[383804668,1757123446281,-480.0,0.00013972,2]
[383804670,1757123446290,-480.0,0.00013972,2]
[383804672,1757123446299,-480.0,0.00013972,2]
[383804674,1757123446309,-485.62754349,0.00013972,2]
[383804676,1757123446318,-480.0,0.00013972,2]
[383804678,1757123446328,-480.0,0.00013972,2]
[383804681,1757123446337,-480.0,0.00013972,2]
[383804683,1757123446347,-565.9,0.00013972,2]
[383804685,1757123446356,-480.0,0.00013972,2]
[383804687,1757123446365,-480.0,0.00013972,2]
[383804689,1757123446375,-480.0,0.00013972,2]
[383804691,1757123446384,-294.791901,0.00013972,2]
[383804693,1757123446393,-480.0,0.00013972,2]
[383804695,1757123446403,-480.0,0.00013972,2]
[383804697,1757123446412,-480.0,0.00013972,2]
[383804699,1757123446421,-22336.23,0.00013972,2]
[383804701,1757123446431,-504.6705001,0.00013972,2]
[383804703,1757123446440,-480.0,0.00013972,2]
[383804705,1757123446450,-480.0,0.00013972,2]
[383804707,1757123446459,-480.0,0.00013972,2]
[383804709,1757123446469,-480.0,0.00013972,2]
[383804711,1757123446478,-480.0,0.00013972,2]
[383804713,1757123446487,-480.0,0.00013972,2]
[383804715,1757123446496,-480.0,0.00013972,2]
[383804717,1757123446506,-541.41,0.00013972,2]
[383804719,1757123446515,-480.0,0.00013972,2]
[383804721,1757123446525,-480.0,0.00013972,2]
[383804723,1757123446535,-485.11924419,0.00013972,2]
[383804725,1757123446545,-481.69619116,0.00013972,2]
[383804728,1757123446555,-480.0,0.00013972,2]
[383804729,1757123446565,-480.0,0.00013972,2]
[383804731,1757123446574,-484.88840081,0.00013972,2]
[383804734,1757123446583,-485.25880517,0.00013972,2]
[383804736,1757123446593,-816.39,0.00013972,2]
[383804738,1757123446602,-480.0,0.00013972,2]
[383804740,1757123446612,-480.0,0.00013972,2]
[383804742,1757123446622,-629.57268172,0.00013972,2]
[383804744,1757123446632,-187.12525922,0.00013972,2]
[383804746,1757123446640,-4636.29,0.00013972,2]
[383804748,1757123446650,-480.0,0.00013972,2]
[383804750,1757123446660,-480.0,0.00013972,2]
[383804752,1757123446669,-236.86474853,0.00013972,2]
[383804754,1757123446679,-483.40365127,0.00013972,2]
[383804756,1757123446689,-482.0674127,0.00013972,2]
[383804758,1757123446698,-480.0,0.00013972,2]
[383804760,1757123446708,-480.0,0.00013972,2]
[383804762,1757123446718,-480.0,0.00013972,2]
[383804764,1757123446727,-499.138248,0.00013972,2]
[383804766,1757123446737,-499.138248,0.00013972,2]
[383804768,1757123446747,-480.0,0.00013972,2]
[383804770,1757123446756,-480.0,0.00013972,2]
[383804772,1757123446766,-499.138248,0.00013972,2]
[383804774,1757123446775,-499.138248,0.00013972,2]
[383804776,1757123446785,-480.0,0.00013972,2]
[383804778,1757123446794,-480.0,0.00013972,2]
[383804780,1757123446804,-499.138248,0.00013972,2]
[383804782,1757123446813,-499.138248,0.00013972,2]
[383804784,1757123446823,-499.138248,0.00013972,2]
[383804786,1757123446832,-499.138248,0.00013972,2]
[383804788,1757123446842,-480.0,0.00013972,2]
[383804790,1757123446851,-480.0,0.00013972,2]
[383804792,1757123446860,-489.28580039,0.00013972,2]
[383804794,1757123446870,-480.0,0.00013972,2]
[383804796,1757123446880,-480.0,0.00013972,2]
[383804798,1757123446889,-461.15873559,0.00013972,2]
[383804800,1757123446899,-480.0,0.00013972,2]
[383804802,1757123446909,-480.0,0.00013972,2]
[383804804,1757123446918,-484.40695155,0.00013972,2]
[383804806,1757123446928,-480.0,0.00013972,2]
[383804808,1757123446937,-480.0,0.00013972,2]
[383804810,1757123446948,-480.0,0.00013972,2]
[383804812,1757123446957,-481.85416646,0.00013972,2]
[383804814,1757123446967,-480.0,0.00013972,2]
[383804816,1757123446976,-507.18836732,0.00013972,2]
[383804818,1757123446986,-480.0,0.00013972,2]
[383804820,1757123446995,-480.0,0.00013972,2]
[383804822,1757123447005,-575.52,0.00013972,2]
[383804824,1757123447015,-482.44371443,0.00013972,2]
[383804826,1757123447024,-480.0,0.00013972,2]
[383804828,1757123447034,-480.0,0.00013972,2]
[383804831,1757123447043,-480.0,0.00013972,2]
[383804833,1757123447053,-493.84534807,0.00013972,2]
[383804835,1757123447063,-480.0,0.00013972,2]
[383804837,1757123447073,-480.0,0.00013972,2]
[383804839,1757123447087,-480.0,0.00013972,2]
[383804841,1757123447096,-480.0,0.00013972,2]
[383804843,1757123447106,-480.0,0.00013972,2]
[383804845,1757123447115,-151.0,0.00013972,2]
[383804847,1757123447127,-151.0,0.00013972,2]
[383804849,1757123447137,-151.0,0.00013972,2]
[383804851,1757123447146,-151.0,0.00013972,2]
[383804853,1757123447156,-480.0,0.00013972,2]
[383804855,1757123447166,-480.0,0.00013972,2]
[383804857,1757123447175,-480.0,0.00013972,2]
[383804859,1757123447185,-480.0,0.00013972,2]
[383804861,1757123447194,-480.0,0.00013972,2]
[383804863,1757123447204,-480.0,0.00013972,2]
[383804865,1757123447215,-480.0,0.00013972,2]
[383804867,1757123447225,-805.13,0.00013972,2]
[383804869,1757123447235,-480.0,0.00013972,2]
[383804871,1757123447245,-484.28648407,0.00013972,2]
[383804873,1757123447254,-480.0,0.00013972,2]
[383804875,1757123447263,-480.0,0.00013972,2]
[383804877,1757123447273,-480.0,0.00013972,2]
[383804879,1757123447282,-480.0,0.00013972,2]
[383804881,1757123447292,-254.952377,0.00013972,2]
[383804882,1757123447302,-348.60868708,0.00013972,2]
[383804883,1757123447311,-254.952377,0.00013972,2]
[383804884,1757123447322,-254.952377,0.00013972,2]
[383804885,1757123447331,-254.952377,0.00013972,2]
[383804886,1757123447341,-151.0,0.00013972,2]
[383804887,1757123447351,-481.66237895,0.00013972,2]
[383804888,1757123447361,-153.085669,0.00013972,2]
[383804889,1757123447371,-254.952377,0.00013972,2]
[383804890,1757123447381,-671.43,0.00013972,2]
[383804891,1757123447391,-254.952377,0.00013972,2]
[383804893,1757123447400,-254.952377,0.00013972,2]
[383804894,1757123447409,-254.952377,0.00013972,2]
[383804896,1757123447419,-500.0,0.00013972,2]
[383804898,1757123447428,-511.90767812,0.00013973,2]
[383804900,1757123447438,-500.51000022,0.00013973,2]
[383804902,1757123447447,-500.86449524,0.00013973,2]
[383804904,1757123447457,-500.0,0.00013973,2]
[383804906,1757123447467,-501.63573222,0.00013973,2]
[383804908,1757123447476,-500.0,0.00013973,2]
[383804911,1757123447485,-500.0,0.00013973,2]
[383804913,1757123447495,-500.0,0.00013973,2]
[383804915,1757123447505,-500.98987879,0.00013973,2]
[383804917,1757123447514,-445.10038339,0.00013973,2]
[383804919,1757123447524,-500.0,0.00013973,2]
[383804921,1757123447533,-500.0,0.00013973,2]
[383804923,1757123447543,-500.0,0.00013973,2]
[383804925,1757123447552,-500.0,0.00013973,2]
[383804927,1757123447562,-501.36235049,0.00013973,2]
[383804929,1757123447571,-500.0,0.00013973,2]
[383804931,1757123447581,-500.9375673,0.00013973,2]
[383804933,1757123447590,-500.0,0.00013973,2]
[383804935,1757123447599,-500.0,0.00013973,2]
[383804937,1757123447608,-500.0,0.00013973,2]
[383804939,1757123447618,-500.0,0.00013973,2]
[383804941,1757123447627,-614.32134606,0.00013973,2]
[383804943,1757123447636,-500.0,0.00013973,2]
[383804945,1757123447646,-500.0,0.00013973,2]
[383804947,1757123447655,-500.0,0.00013973,2]
[383804949,1757123447664,-501.02794123,0.00013973,2]
[383804951,1757123447674,-500.73139972,0.00013973,2]
[383804953,1757123447683,-500.2455451,0.00013973,2]
[383804955,1757123447692,-500.0,0.00013973,2]
[383804957,1757123447703,-500.0,0.00013973,2]
[383804959,1757123447712,-500.0,0.00013973,2]
[383804961,1757123447722,-501.67970441,0.00013973,2]
[383804963,1757123447731,-500.0,0.00013973,2]
[383804965,1757123447741,-100000.0,0.0001399,2]
[383804967,1757123447752,-151.0,0.0001399,2]
[383804969,1757123447761,-174.371751,0.0001399,2]
[383804972,1757123447771,-174.371751,0.0001399,2]
[383804974,1757123447782,-174.371751,0.0001399,2]
[383804976,1757123447792,-151.0,0.0001399,2]
[383804978,1757123447802,-174.371751,0.0001399,2]
[383804980,1757123447811,-151.0,0.0001399,2]
[383804982,1757123447821,-151.0,0.0001399,2]
[383804984,1757123447830,-151.0,0.0001399,2]
[383804986,1757123447840,-151.0,0.0001399,2]
[383804988,1757123447850,-154.436338,0.0001399,2]
[383804990,1757123447859,-499.138248,0.0001399,2]
[383804992,1757123447869,-499.138248,0.0001399,2]
[383804994,1757123447879,-499.138248,0.0001399,2]
[383804996,1757123447889,-499.138248,0.0001399,2]
[383804998,1757123447899,-151.0,0.0001399,2]
[383805000,1757123447909,-151.0,0.0001399,2]
[383805002,1757123447918,-254.952377,0.0001399,2]
[383805004,1757123447928,-254.952377,0.0001399,2]
[383805006,1757123447938,-254.952377,0.0001399,2]
[383805008,1757123447947,-254.952377,0.0001399,2]
[383805010,1757123447957,-172247.58463539,0.00014,2]
[383805012,1757123447967,-151.0,0.00014,2]
[383805015,1757123447977,-174.371751,0.00014,2]
[383805017,1757123447987,-174.371751,0.00014,2]
[383805019,1757123447996,-174.371751,0.00014,2]
[383805021,1757123448006,-151.0,0.00014,2]
[383805023,1757123448015,-174.371751,0.00014,2]
[383805025,1757123448025,-151.0,0.00014,2]
[383805027,1757123448035,-151.0,0.00014,2]